[Event "Un Rapid per cominciare!"]
[Site "Chess.com"]
[Date "2020.04.10"]
[Round "3"]
[White "SanSecondoPR"]
[Black "rob_fio"]
[Result "1-0"]
[WhiteElo "1565"]
[BlackElo "1523"]
[TimeControl "720+3"]
[EndTime "12:31:48 PDT"]
[Termination "SanSecondoPR ha vinto per abbandono"]

1. e4 {[%clk 0:12:02.9]} 1... d6 {[%clk 0:11:15.3]} 2. d4 {[%clk 0:12:01.5]}
2... Nf6 {[%clk 0:11:13.3]} 3. Nc3 {[%clk 0:12:00.9]} 3... Nbd7 {[%clk
0:11:14.6]} 4. Bb5 {[%clk 0:11:59]} 4... c6 {[%clk 0:11:16.4]} 5. Ba4 {[%clk
0:11:53.5]} 5... e5 {[%clk 0:11:14.8]} 6. Nf3 {[%clk 0:11:52.2]} 6... h6 {[%clk
0:11:14.3]} 7. O-O {[%clk 0:11:48.1]} 7... Qc7 {[%clk 0:11:16.4]} 8. d5 {[%clk
0:11:34.1]} 8... c5 {[%clk 0:11:05.2]} 9. b4 {[%clk 0:10:57.8]} 9... a6 {[%clk
0:10:30.3]} 10. bxc5 {[%clk 0:10:44.8]} 10... Qxc5 {[%clk 0:10:23.4]} 11. Qe1
{[%clk 0:10:15.1]} 11... b5 {[%clk 0:10:24]} 12. Be3 {[%clk 0:10:08.3]} 12...
Qc7 {[%clk 0:10:19.1]} 13. Bb3 {[%clk 0:10:07.2]} 13... Be7 {[%clk 0:10:12]} 14.
a4 {[%clk 0:09:57.5]} 14... b4 {[%clk 0:10:11.4]} 15. Na2 {[%clk 0:09:51.5]}
15... a5 {[%clk 0:09:59.9]} 16. c4 {[%clk 0:09:43.7]} 16... Nc5 {[%clk
0:09:50.2]} 17. Bxc5 {[%clk 0:09:39.7]} 17... Qxc5 {[%clk 0:09:53.1]} 18. Nc1
{[%clk 0:09:11.7]} 18... Bg4 {[%clk 0:09:48]} 19. Nd3 {[%clk 0:09:08.4]} 19...
Qc8 {[%clk 0:09:48.7]} 20. Qe3 {[%clk 0:09:00.7]} 20... Bh5 {[%clk 0:09:42.6]}
21. h3 {[%clk 0:08:50.9]} 21... O-O {[%clk 0:09:29]} 22. Rac1 {[%clk 0:08:25.2]}
22... Bxf3 {[%clk 0:09:04.8]} 23. Qxf3 {[%clk 0:08:18.2]} 23... Qd7 {[%clk
0:09:06.9]} 24. c5 {[%clk 0:08:15.7]} 24... Nh7 {[%clk 0:08:59.2]} 25. c6 {[%clk
0:08:11.4]} 25... Qc8 {[%clk 0:08:54.3]} 26. c7 {[%clk 0:07:52.9]} 26... Ra7
{[%clk 0:08:50.8]} 27. Rc6 {[%clk 0:07:19.7]} 27... Rxc7 {[%clk 0:08:46.1]} 28.
Rfc1 {[%clk 0:07:18.6]} 28... Rxc6 {[%clk 0:08:47.3]} 29. dxc6 {[%clk
0:07:12.2]} 29... Ng5 {[%clk 0:08:33.5]} 30. Qf5 {[%clk 0:06:50.5]} 30... Qc7
{[%clk 0:08:18.4]} 31. Qd7 {[%clk 0:06:40.7]} 31... Qxd7 {[%clk 0:07:42.9]} 32.
cxd7 {[%clk 0:06:38.2]} 32... Rd8 {[%clk 0:07:44.9]} 33. Rc8 {[%clk 0:06:35.1]}
33... Nh7 {[%clk 0:07:22.5]} 34. f4 {[%clk 0:06:20.8]} 34... Nf8 {[%clk
0:07:20]} 35. Rxd8 {[%clk 0:06:16.2]} 35... Bxd8 {[%clk 0:07:20.5]} 36. fxe5
{[%clk 0:06:17.5]} 36... Nxd7 {[%clk 0:07:18.4]} 37. e6 {[%clk 0:06:07.7]} 37...
Nc5 {[%clk 0:07:12.8]} 38. exf7+ {[%clk 0:06:06.5]} 38... Kf8 {[%clk 0:07:14.1]}
39. Nxc5 {[%clk 0:05:41.6]} 39... dxc5 {[%clk 0:07:17]} 40. Kf2 {[%clk
0:05:34.6]} 40... Bb6 {[%clk 0:07:18.9]} 41. Kf3 {[%clk 0:05:28.8]} 41... Bc7
{[%clk 0:07:17.9]} 42. Kg4 {[%clk 0:05:24.5]} 42... Be5 {[%clk 0:07:16.9]} 43.
Kf5 {[%clk 0:05:22.9]} 43... Bd6 {[%clk 0:07:17]} 44. e5 {[%clk 0:05:21.4]}
44... Be7 {[%clk 0:07:18.5]} 45. e6 {[%clk 0:05:14.2]} 45... Bf6 {[%clk
0:07:14.4]} 46. g3 {[%clk 0:05:08.8]} 46... Ke7 {[%clk 0:07:10.5]} 47. h4 {[%clk
0:05:08.4]} 47... Bc3 {[%clk 0:07:05]} 48. Kg6 {[%clk 0:04:41.7]} 48... Bd4
{[%clk 0:06:56.2]} 49. Kh7 {[%clk 0:04:38.4]} 49... Kf8 {[%clk 0:06:53.4]} 50.
e7+ {[%clk 0:04:29.9]} 50... Kxe7 {[%clk 0:06:50.1]} 51. Kg8 {[%clk 0:04:28]}
1-0

[Event "Un Rapid per cominciare!"]
[Site "Chess.com"]
[Date "2020.04.10"]
[Round "3"]
[White "Ollarov"]
[Black "lionblu1"]
[Result "1-0"]
[WhiteElo "1861"]
[BlackElo "1250"]
[TimeControl "720+3"]
[EndTime "12:35:00 PDT"]
[Termination "Ollarov ha vinto per abbandono"]

1. e4 {[%clk 0:12:00.9]} 1... c5 {[%clk 0:11:57.9]} 2. a3 {[%clk 0:11:59.4]}
2... e6 {[%clk 0:11:58.5]} 3. b4 {[%clk 0:11:54.9]} 3... cxb4 {[%clk 0:11:58.5]}
4. axb4 {[%clk 0:11:57]} 4... Bxb4 {[%clk 0:11:58.2]} 5. Bb2 {[%clk 0:11:59]}
5... Nf6 {[%clk 0:11:56.6]} 6. e5 {[%clk 0:11:59.9]} 6... Nd5 {[%clk 0:11:06.2]}
7. c4 {[%clk 0:11:26.4]} 7... Ne7 {[%clk 0:10:51.3]} 8. Nc3 {[%clk 0:11:13.8]}
8... Nbc6 {[%clk 0:10:04.4]} 9. Nb5 {[%clk 0:10:46.4]} 9... Bc5 {[%clk
0:09:14.1]} 10. Nf3 {[%clk 0:10:21.2]} 10... O-O {[%clk 0:08:17]} 11. Bd3 {[%clk
0:10:21.8]} 11... Ng6 {[%clk 0:07:53.6]} 12. O-O {[%clk 0:10:13.5]} 12... d6
{[%clk 0:07:27.7]} 13. Bxg6 {[%clk 0:09:44.3]} 13... hxg6 {[%clk 0:07:24.4]} 14.
d4 {[%clk 0:09:40.7]} 14... Bb6 {[%clk 0:07:06.6]} 15. Nxd6 {[%clk 0:09:41.3]}
15... Bc7 {[%clk 0:06:39.1]} 16. Ba3 {[%clk 0:09:11.3]} 16... Bxd6 {[%clk
0:06:39.1]} 17. Bxd6 {[%clk 0:09:09.5]} 17... Re8 {[%clk 0:06:30.4]} 18. Qd2
{[%clk 0:09:00.8]} 18... Ne7 {[%clk 0:06:24.2]} 19. Qf4 {[%clk 0:08:57.8]} 19...
Nf5 {[%clk 0:06:10.3]} 20. g4 {[%clk 0:08:42.4]} 20... Nxd6 {[%clk 0:06:05.1]}
21. exd6 {[%clk 0:08:39.4]} 21... Qf6 {[%clk 0:05:47.6]} 22. Qg3 {[%clk
0:07:49.3]} 22... b6 {[%clk 0:05:38.7]} 23. Ne5 {[%clk 0:07:46.1]} 23... Bb7
{[%clk 0:04:59.8]} 24. d7 {[%clk 0:07:10.4]} 24... Red8 {[%clk 0:04:36.9]} 25.
c5 {[%clk 0:07:10.6]} 25... bxc5 {[%clk 0:04:26.1]} 26. dxc5 {[%clk 0:07:07.4]}
26... Bd5 {[%clk 0:04:09.5]} 27. Rfc1 {[%clk 0:06:31.5]} 27... Rab8 {[%clk
0:03:43.9]} 28. Ra3 {[%clk 0:06:07.1]} 28... Qg5 {[%clk 0:03:19.8]} 29. f4
{[%clk 0:05:19.5]} 29... Qe7 {[%clk 0:03:19.9]} 30. Rac3 {[%clk 0:05:15.3]}
30... Rb5 {[%clk 0:02:41.4]} 31. c6 {[%clk 0:04:10.5]} 31... Rb2 {[%clk
0:02:25.4]} 32. c7 {[%clk 0:04:06.2]} 1-0

[Event "Un Rapid per cominciare!"]
[Site "Chess.com"]
[Date "2020.04.10"]
[Round "3"]
[White "GuGe14"]
[Black "markk000"]
[Result "0-1"]
[WhiteElo "1542"]
[BlackElo "1553"]
[TimeControl "720+3"]
[EndTime "12:35:11 PDT"]
[Termination "markk000 ha vinto per abbandono"]

1. e4 {[%clk 0:11:58.7]} 1... c5 {[%clk 0:12:00.9]} 2. Nc3 {[%clk 0:11:57.6]}
2... e6 {[%clk 0:10:52.5]} 3. Bc4 {[%clk 0:11:39.5]} 3... Nf6 {[%clk 0:10:47]}
4. f4 {[%clk 0:11:30.1]} 4... a6 {[%clk 0:10:41.8]} 5. e5 {[%clk 0:10:58.9]}
5... d5 {[%clk 0:10:35.2]} 6. Bf1 {[%clk 0:10:54.3]} 6... Nfd7 {[%clk
0:10:24.5]} 7. Nf3 {[%clk 0:10:51.9]} 7... Be7 {[%clk 0:10:06.1]} 8. d4 {[%clk
0:10:40.5]} 8... Nc6 {[%clk 0:10:03.5]} 9. Ne2 {[%clk 0:10:36.1]} 9... O-O
{[%clk 0:10:02.5]} 10. g3 {[%clk 0:10:06.4]} 10... cxd4 {[%clk 0:09:25]} 11.
Nexd4 {[%clk 0:09:44.6]} 11... Bc5 {[%clk 0:09:22.2]} 12. c3 {[%clk 0:09:37.3]}
12... b5 {[%clk 0:08:50.2]} 13. Nxc6 {[%clk 0:09:34.4]} 13... Qb6 {[%clk
0:08:50]} 14. Ncd4 {[%clk 0:09:31.7]} 14... b4 {[%clk 0:08:45.7]} 15. Be3 {[%clk
0:06:54.6]} 15... bxc3 {[%clk 0:08:29.9]} 16. bxc3 {[%clk 0:06:57.5]} 16... f6
{[%clk 0:08:20.7]} 17. Rb1 {[%clk 0:06:22.6]} 17... Qa7 {[%clk 0:08:16.9]} 18.
Qc1 {[%clk 0:04:54.3]} 18... fxe5 {[%clk 0:08:05.5]} 19. Nxe5 {[%clk 0:04:15.4]}
19... Nxe5 {[%clk 0:07:14.3]} 20. fxe5 {[%clk 0:04:15.4]} 20... Bd7 {[%clk
0:07:16]} 21. Bd3 {[%clk 0:03:28.7]} 21... Rf3 {[%clk 0:06:54.7]} 22. Nxf3
{[%clk 0:03:04.2]} 22... Bxe3 {[%clk 0:06:55.2]} 23. Qc2 {[%clk 0:02:57.3]}
23... Rf8 {[%clk 0:06:50.9]} 24. Ke2 {[%clk 0:02:43.3]} 24... Be8 {[%clk
0:06:46.1]} 25. Bxh7+ {[%clk 0:02:40.8]} 25... Kh8 {[%clk 0:06:46.7]} 26. Bg6
{[%clk 0:02:20.3]} 26... Bb5+ {[%clk 0:06:42.6]} 27. Bd3 {[%clk 0:02:09.7]}
27... Be8 {[%clk 0:06:43.8]} 28. Nd4 {[%clk 0:01:02.1]} 28... Rf2+ {[%clk
0:06:42.4]} 29. Kxe3 {[%clk 0:01:02.9]} 29... Rxc2 {[%clk 0:06:43]} 30. Bxc2
{[%clk 0:01:03]} 30... Bb5 {[%clk 0:06:38.4]} 31. Bd3 {[%clk 0:00:18.8]} 31...
Bxd3 {[%clk 0:06:36.1]} 32. Kxd3 {[%clk 0:00:21.7]} 32... Qc7 {[%clk 0:06:36.6]}
33. Rb3 {[%clk 0:00:16.8]} 33... Qxe5 {[%clk 0:06:38.2]} 34. Rhb1 {[%clk
0:00:15.7]} 34... Qf6 {[%clk 0:06:38.5]} 35. Rb8+ {[%clk 0:00:17]} 35... Kh7
{[%clk 0:06:40.3]} 36. R8b6 {[%clk 0:00:13.3]} 36... Qg6+ {[%clk 0:06:40.5]} 37.
Kd2 {[%clk 0:00:13.7]} 37... Qg5+ {[%clk 0:06:41.4]} 38. Kc2 {[%clk 0:00:13.6]}
38... e5 {[%clk 0:06:42.4]} 39. Ne6 {[%clk 0:00:07.9]} 39... Qe3 {[%clk
0:06:44.1]} 40. Kb3 {[%clk 0:00:06.5]} 40... Qxb6+ {[%clk 0:06:43]} 41. Kc2
{[%clk 0:00:08.6]} 41... Qxe6 {[%clk 0:06:44.6]} 42. Rg1 {[%clk 0:00:10.9]}
42... e4 {[%clk 0:06:46.7]} 43. Kd2 {[%clk 0:00:12.5]} 43... Qe5 {[%clk
0:06:49.2]} 44. Re1 {[%clk 0:00:12.7]} 44... d4 {[%clk 0:06:51.7]} 45. cxd4
{[%clk 0:00:13.2]} 45... Qxd4+ {[%clk 0:06:54.6]} 46. Kc1 {[%clk 0:00:14.4]}
46... e3 {[%clk 0:06:56.6]} 0-1

[Event "Un Rapid per cominciare!"]
[Site "Chess.com"]
[Date "2020.04.10"]
[Round "3"]
[White "freudstein"]
[Black "Lorenzo_PR"]
[Result "0-1"]
[WhiteElo "1350"]
[BlackElo "1232"]
[TimeControl "720+3"]
[EndTime "12:42:31 PDT"]
[Termination "Lorenzo_PR ha vinto per tempo"]

1. e4 {[%clk 0:12:02.9]} 1... d5 {[%clk 0:12:01.1]} 2. exd5 {[%clk 0:11:47.6]}
2... Nf6 {[%clk 0:12:03.4]} 3. d6 {[%clk 0:11:30.3]} 3... exd6 {[%clk
0:11:45.5]} 4. Nf3 {[%clk 0:11:30]} 4... Be7 {[%clk 0:11:45.9]} 5. g3 {[%clk
0:11:30.4]} 5... Bd7 {[%clk 0:11:43.5]} 6. Bg2 {[%clk 0:11:30.4]} 6... Bc6
{[%clk 0:11:45.4]} 7. d3 {[%clk 0:11:26.5]} 7... O-O {[%clk 0:11:45.3]} 8. O-O
{[%clk 0:11:28.1]} 8... Nbd7 {[%clk 0:11:42.1]} 9. Nc3 {[%clk 0:11:19.9]} 9...
Re8 {[%clk 0:11:40.5]} 10. Re1 {[%clk 0:10:48.5]} 10... Nb6 {[%clk 0:11:34.2]}
11. Bg5 {[%clk 0:10:16.4]} 11... h6 {[%clk 0:11:34.7]} 12. Bd2 {[%clk
0:10:06.8]} 12... Bf8 {[%clk 0:11:31.7]} 13. Rxe8 {[%clk 0:09:46.5]} 13... Qxe8
{[%clk 0:11:32.1]} 14. Qe1 {[%clk 0:09:18.9]} 14... Qd7 {[%clk 0:11:31.9]} 15.
Be3 {[%clk 0:08:44]} 15... Re8 {[%clk 0:11:30.1]} 16. Qd2 {[%clk 0:08:38.5]}
16... Nfd5 {[%clk 0:11:11.8]} 17. Nd4 {[%clk 0:06:33.1]} 17... Nxe3 {[%clk
0:10:08.6]} 18. Bxc6 {[%clk 0:06:19.7]} 18... bxc6 {[%clk 0:10:10]} 19. fxe3
{[%clk 0:06:18.1]} 19... Nd5 {[%clk 0:09:27.5]} 20. Nxd5 {[%clk 0:06:13.9]}
20... cxd5 {[%clk 0:09:27]} 21. Kg2 {[%clk 0:05:41.4]} 21... c5 {[%clk 0:09:09]}
22. Ne2 {[%clk 0:05:29.6]} 22... Qe6 {[%clk 0:09:06.9]} 23. Re1 {[%clk 0:04:25]}
23... Qxe3 {[%clk 0:09:04.7]} 24. Qxe3 {[%clk 0:04:26.4]} 24... Rxe3 {[%clk
0:09:07.6]} 25. Kf2 {[%clk 0:04:26.4]} 25... Re6 {[%clk 0:08:53.7]} 26. Nc3
{[%clk 0:04:18.2]} 26... Rxe1 {[%clk 0:08:52.6]} 27. Kxe1 {[%clk 0:04:19.7]}
27... d4 {[%clk 0:08:54.4]} 28. Ne4 {[%clk 0:04:21.4]} 28... g6 {[%clk
0:08:51.3]} 29. Kf2 {[%clk 0:04:19.4]} 29... Kg7 {[%clk 0:08:53.5]} 30. Kf3
{[%clk 0:04:19.6]} 30... f5 {[%clk 0:08:51.6]} 31. Nd2 {[%clk 0:04:18.9]} 31...
Kf6 {[%clk 0:08:50.8]} 32. Nc4 {[%clk 0:04:20.1]} 32... g5 {[%clk 0:08:39.3]}
33. h3 {[%clk 0:04:16.1]} 33... h5 {[%clk 0:08:36.4]} 34. Nd2 {[%clk 0:04:15.4]}
34... g4+ {[%clk 0:08:19.8]} 35. hxg4 {[%clk 0:04:13.3]} 35... hxg4+ {[%clk
0:08:22.7]} 36. Ke2 {[%clk 0:03:54.8]} 36... Kg5 {[%clk 0:07:48.4]} 37. b3
{[%clk 0:03:53.5]} 37... f4 {[%clk 0:07:48]} 38. gxf4+ {[%clk 0:03:48.2]} 38...
Kxf4 {[%clk 0:07:50.9]} 39. Nf1 {[%clk 0:03:49.9]} 39... Bg7 {[%clk 0:07:18.5]}
40. Kf2 {[%clk 0:03:45]} 40... Be5 {[%clk 0:07:19.7]} 41. Ng3 {[%clk 0:03:35.5]}
41... Kg5 {[%clk 0:06:26.5]} 42. a3 {[%clk 0:03:28.3]} 42... Kh4 {[%clk
0:06:27.8]} 43. Ne4 {[%clk 0:03:06.3]} 43... Kh3 {[%clk 0:06:24.1]} 44. Ng5+
{[%clk 0:03:03.9]} 44... Kh4 {[%clk 0:06:25.8]} 45. Ne4 {[%clk 0:03:01.4]} 45...
Bf4 {[%clk 0:06:04]} 46. Kg2 {[%clk 0:02:48.5]} 46... a6 {[%clk 0:05:44.5]} 47.
Nf6 {[%clk 0:01:25.7]} 47... Kg5 {[%clk 0:05:02.4]} 48. Ne4+ {[%clk 0:01:19.5]}
48... Kf5 {[%clk 0:05:00.3]} 49. Nf2 {[%clk 0:01:08.8]} 49... Be5 {[%clk
0:04:50.9]} 50. Ne4 {[%clk 0:01:07]} 50... Kf4 {[%clk 0:04:49.6]} 51. Kf2 {[%clk
0:00:57.7]} 51... Kf5 {[%clk 0:04:34]} 52. Kg2 {[%clk 0:00:56.9]} 52... Ke6
{[%clk 0:04:23.7]} 53. Kf2 {[%clk 0:00:40.6]} 53... Kd7 {[%clk 0:03:54.8]} 54.
Ng3 {[%clk 0:00:29.7]} 54... Kc6 {[%clk 0:03:52.7]} 55. Ne4 {[%clk 0:00:19.8]}
55... a5 {[%clk 0:03:48.2]} 56. Ng3 {[%clk 0:00:15.4]} 56... Kb5 {[%clk
0:03:45.9]} 57. Ne4 {[%clk 0:00:15.1]} 57... a4 {[%clk 0:03:43.9]} 58. Nd2
{[%clk 0:00:13.3]} 58... axb3 {[%clk 0:03:39.1]} 59. cxb3 {[%clk 0:00:12]} 59...
g3+ {[%clk 0:03:16.6]} 60. Kg2 {[%clk 0:00:11.3]} 60... d5 {[%clk 0:03:16.9]}
61. Nf3 {[%clk 0:00:11]} 61... Bd6 {[%clk 0:03:06]} 62. Nd2 {[%clk 0:00:10.1]}
62... Ka5 {[%clk 0:02:02.7]} 63. a4 {[%clk 0:00:04.3]} 63... Bc7 {[%clk
0:01:50.9]} 0-1

[Event "Un Rapid per cominciare!"]
[Site "Chess.com"]
[Date "2020.04.10"]
[Round "4"]
[White "MarcoCiva"]
[Black "sirmale49"]
[Result "1/2-1/2"]
[WhiteElo "1851"]
[BlackElo "1433"]
[TimeControl "720+3"]
[EndTime "12:47:32 PDT"]
[Termination "Patta d'accordo"]

1. d4 {[%clk 0:11:54.4]} 1... d5 {[%clk 0:12:00.4]} 2. c4 {[%clk 0:11:49.5]}
2... e5 {[%clk 0:12:01.5]} 3. e3 {[%clk 0:11:49.8]} 3... Nc6 {[%clk 0:11:55.5]}
4. Nf3 {[%clk 0:11:34.8]} 4... Bg4 {[%clk 0:11:51.4]} 5. Be2 {[%clk 0:11:33.8]}
5... e4 {[%clk 0:11:47.5]} 6. Ne5 {[%clk 0:11:21]} 6... Bxe2 {[%clk 0:11:45.1]}
7. Qxe2 {[%clk 0:11:18]} 7... Nxe5 {[%clk 0:11:45.7]} 8. dxe5 {[%clk 0:11:19.1]}
8... Bb4+ {[%clk 0:11:35.7]} 9. Bd2 {[%clk 0:11:04.5]} 9... Bxd2+ {[%clk
0:11:28.9]} 10. Nxd2 {[%clk 0:11:04.8]} 10... d4 {[%clk 0:11:28.4]} 11. Nxe4
{[%clk 0:10:50.7]} 11... dxe3 {[%clk 0:11:27.3]} 12. Qxe3 {[%clk 0:10:47.2]}
12... Ne7 {[%clk 0:11:24.8]} 13. O-O {[%clk 0:10:35.1]} 13... O-O {[%clk
0:10:55.2]} 14. Rad1 {[%clk 0:10:06.4]} 1/2-1/2

[Event "Un Rapid per cominciare!"]
[Site "Chess.com"]
[Date "2020.04.10"]
[Round "4"]
[White "Piccolorso"]
[Black "Ollarov"]
[Result "0-1"]
[WhiteElo "1440"]
[BlackElo "1911"]
[TimeControl "720+3"]
[EndTime "12:51:31 PDT"]
[Termination "Ollarov ha vinto per abbandono"]

1. e4 {[%clk 0:12:02.9]} 1... c5 {[%clk 0:12:01.1]} 2. Nf3 {[%clk 0:12:03.1]}
2... e6 {[%clk 0:12:02.6]} 3. d4 {[%clk 0:12:04.5]} 3... cxd4 {[%clk 0:12:04.6]}
4. Nxd4 {[%clk 0:12:05.7]} 4... Nc6 {[%clk 0:12:07.2]} 5. Nc3 {[%clk 0:12:05.3]}
5... Qc7 {[%clk 0:12:09.7]} 6. Be3 {[%clk 0:11:31.2]} 6... a6 {[%clk 0:11:34.1]}
7. Qd2 {[%clk 0:11:29.8]} 7... Nf6 {[%clk 0:11:35.1]} 8. f3 {[%clk 0:11:29]}
8... Be7 {[%clk 0:11:36.4]} 9. O-O-O {[%clk 0:10:47]} 9... h5 {[%clk 0:11:35.9]}
10. h4 {[%clk 0:10:18.9]} 10... b5 {[%clk 0:11:05.4]} 11. Nxc6 {[%clk
0:09:59.7]} 11... Qxc6 {[%clk 0:10:57.4]} 12. Be2 {[%clk 0:08:19.7]} 12... Bb7
{[%clk 0:10:58.8]} 13. Bg5 {[%clk 0:08:11]} 13... b4 {[%clk 0:10:50.6]} 14. e5
{[%clk 0:07:41.2]} 14... bxc3 {[%clk 0:10:51.1]} 15. Qxc3 {[%clk 0:07:38.4]}
15... Qxc3 {[%clk 0:10:47.3]} 16. bxc3 {[%clk 0:07:40]} 16... Nd5 {[%clk
0:10:49]} 17. Bxe7 {[%clk 0:06:51.8]} 17... Kxe7 {[%clk 0:10:49.7]} 18. Kb1
{[%clk 0:06:35]} 0-1

[Event "Un Rapid per cominciare!"]
[Site "Chess.com"]
[Date "2020.04.10"]
[Round "4"]
[White "sergiodone"]
[Black "lucatarozzi"]
[Result "0-1"]
[WhiteElo "1204"]
[BlackElo "1219"]
[TimeControl "720+3"]
[EndTime "12:53:17 PDT"]
[Termination "lucatarozzi ha vinto per abbandono"]

1. e4 {[%clk 0:11:46.7]} 1... e5 {[%clk 0:12:01.6]} 2. d4 {[%clk 0:11:47.2]}
2... exd4 {[%clk 0:11:59.6]} 3. Nf3 {[%clk 0:11:48.8]} 3... Nc6 {[%clk
0:11:53.7]} 4. Bc4 {[%clk 0:11:49.2]} 4... d6 {[%clk 0:11:53.4]} 5. h3 {[%clk
0:11:49]} 5... Nf6 {[%clk 0:11:50.3]} 6. Bg5 {[%clk 0:11:46.3]} 6... Ne5 {[%clk
0:11:48.6]} 7. Nxe5 {[%clk 0:11:45]} 7... dxe5 {[%clk 0:11:49.9]} 8. O-O {[%clk
0:11:46.1]} 8... Be7 {[%clk 0:11:47.3]} 9. Nd2 {[%clk 0:11:43.2]} 9... O-O
{[%clk 0:11:49]} 10. f4 {[%clk 0:11:39.7]} 10... exf4 {[%clk 0:11:35.4]} 11.
Rxf4 {[%clk 0:11:39.4]} 11... Qd6 {[%clk 0:11:17.7]} 12. Rf1 {[%clk 0:11:29.4]}
12... Qb6 {[%clk 0:11:15]} 13. Kh1 {[%clk 0:11:28.1]} 13... Qxb2 {[%clk
0:11:14.6]} 14. Bxf6 {[%clk 0:11:26]} 14... Bxf6 {[%clk 0:11:14]} 15. Rb1 {[%clk
0:11:18.8]} 15... Qa3 {[%clk 0:11:11.5]} 16. Rxf6 {[%clk 0:10:25.4]} 16... gxf6
{[%clk 0:11:11.1]} 17. Qh5 {[%clk 0:10:24.4]} 17... Qe3 {[%clk 0:10:45.7]} 18.
Nf3 {[%clk 0:10:11.2]} 18... Be6 {[%clk 0:10:40.5]} 19. Bd3 {[%clk 0:10:11.7]}
19... a5 {[%clk 0:10:34.3]} 20. e5 {[%clk 0:10:13.3]} 20... f5 {[%clk
0:10:22.2]} 21. Bxf5 {[%clk 0:09:48.8]} 21... Bxf5 {[%clk 0:10:22.9]} 22. Qxf5
{[%clk 0:09:50.6]} 22... Rfd8 {[%clk 0:10:13.5]} 23. Qf6 {[%clk 0:09:48.5]}
23... d3 {[%clk 0:10:10.1]} 24. cxd3 {[%clk 0:09:32.5]} 24... Qxd3 {[%clk
0:10:06.5]} 25. Rf1 {[%clk 0:09:26.4]} 25... Qxf1+ {[%clk 0:10:07.1]} 26. Kh2
{[%clk 0:09:24.7]} 26... Qc4 {[%clk 0:09:58.9]} 27. Qg5+ {[%clk 0:09:21.5]}
27... Kf8 {[%clk 0:09:57]} 28. Qf6 {[%clk 0:09:12.7]} 28... Qe6 {[%clk 0:09:56]}
29. Qh8+ {[%clk 0:09:13.4]} 29... Ke7 {[%clk 0:09:57.3]} 30. Qxh7 {[%clk
0:09:12.6]} 30... Rh8 {[%clk 0:09:52]} 31. Qg7 {[%clk 0:09:11.5]} 31... Rag8
{[%clk 0:09:49.5]} 32. Qf6+ {[%clk 0:09:12.5]} 32... Qxf6 {[%clk 0:09:50.7]} 33.
exf6+ {[%clk 0:09:13.3]} 33... Kxf6 {[%clk 0:09:52.9]} 34. a4 {[%clk 0:08:54.3]}
34... Rf8 {[%clk 0:09:53.6]} 35. g4 {[%clk 0:08:51.6]} 35... Rd8 {[%clk
0:09:54.8]} 36. Kg3 {[%clk 0:08:52.4]} 36... Rhe8 {[%clk 0:09:55.9]} 37. g5+
{[%clk 0:08:50.3]} 37... Kg6 {[%clk 0:09:57.5]} 38. h4 {[%clk 0:08:51.9]} 38...
c5 {[%clk 0:09:59]} 39. Kg4 {[%clk 0:08:37.3]} 39... Re4+ {[%clk 0:09:58.1]} 40.
Kg3 {[%clk 0:08:35.5]} 40... c4 {[%clk 0:09:59.5]} 41. Kf2 {[%clk 0:08:07.5]}
41... c3 {[%clk 0:10:00.4]} 0-1

[Event "Un Rapid per cominciare!"]
[Site "Chess.com"]
[Date "2020.04.10"]
[Round "4"]
[White "Niklas1205"]
[Black "Jody94"]
[Result "0-1"]
[WhiteElo "825"]
[BlackElo "980"]
[TimeControl "720+3"]
[EndTime "12:55:42 PDT"]
[Termination "Jody94 ha vinto per scaccomatto"]

1. d3 {[%clk 0:12:02.9]} 1... f5 {[%clk 0:11:55.5]} 2. f3 {[%clk 0:12:03.6]}
2... d5 {[%clk 0:11:49.3]} 3. e4 {[%clk 0:12:03.2]} 3... e6 {[%clk 0:11:42]} 4.
c4 {[%clk 0:11:56.9]} 4... Nf6 {[%clk 0:11:05.1]} 5. e5 {[%clk 0:11:48.6]} 5...
Nfd7 {[%clk 0:10:52]} 6. g4 {[%clk 0:11:34.2]} 6... Qh4+ {[%clk 0:10:20.5]} 7.
Ke2 {[%clk 0:11:28.8]} 7... fxg4 {[%clk 0:09:58.7]} 8. fxg4 {[%clk 0:11:26.7]}
8... Qxg4+ {[%clk 0:09:58]} 9. Ke1 {[%clk 0:11:26]} 9... Qf5 {[%clk 0:09:23.4]}
10. Bh3 {[%clk 0:11:18]} 10... Qxe5+ {[%clk 0:09:15.9]} 11. Kf1 {[%clk
0:11:13.4]} 11... Nc5 {[%clk 0:08:18.5]} 12. a3 {[%clk 0:11:05.6]} 12... Qf5+
{[%clk 0:08:02.2]} 13. Ke1 {[%clk 0:11:03.1]} 13... Nxd3+ {[%clk 0:07:48.2]} 14.
Kd2 {[%clk 0:11:00.3]} 14... Qe4 {[%clk 0:07:36.9]} 15. Qh5+ {[%clk 0:10:42.1]}
15... g6 {[%clk 0:07:26.8]} 16. Qd1 {[%clk 0:10:38.7]} 16... Qxh1 {[%clk
0:07:25]} 17. Qg4 {[%clk 0:10:17.2]} 17... Qxh2+ {[%clk 0:07:19.5]} 18. Kd1
{[%clk 0:10:11.2]} 18... Nf2+ {[%clk 0:07:08.1]} 19. Ke2 {[%clk 0:10:01.7]}
19... Nxg4+ {[%clk 0:06:21.5]} 20. Kf3 {[%clk 0:09:57.5]} 20... Ne5+ {[%clk
0:06:17.4]} 21. Ke3 {[%clk 0:09:48.2]} 21... Qxg1+ {[%clk 0:06:18.1]} 22. Kd2
{[%clk 0:09:42.1]} 22... Qh2+ {[%clk 0:06:16.2]} 23. Kd1 {[%clk 0:09:42]} 23...
Qxh3 {[%clk 0:06:17.7]} 24. Bg5 {[%clk 0:09:35.2]} 24... Qh5+ {[%clk 0:06:14.4]}
25. Kc1 {[%clk 0:09:29.2]} 25... Qxg5+ {[%clk 0:06:15.2]} 26. Kc2 {[%clk
0:09:28.7]} 26... Bc5 {[%clk 0:06:07.8]} 27. a4 {[%clk 0:09:17.5]} 27... Rf8
{[%clk 0:06:08.1]} 28. cxd5 {[%clk 0:09:15.7]} 28... Rf3 {[%clk 0:06:07.6]} 29.
Kd1 {[%clk 0:09:05.2]} 29... Qg2 {[%clk 0:06:07.4]} 30. Nd2 {[%clk 0:09:01.9]}
30... Rf2 {[%clk 0:06:05.7]} 31. b4 {[%clk 0:08:45.3]} 31... Rxd2+ {[%clk
0:06:03.3]} 32. Kc1 {[%clk 0:08:44.3]} 32... Rf2 {[%clk 0:06:03.6]} 33. Kb1
{[%clk 0:08:43.5]} 33... Qg1# {[%clk 0:06:05.7]} 0-1